[Event "Early-Titled-Tuesday-Blitz-January-16-2024"]
[Site "Chess.com"]
[Date "2024.01.16"]
[Round "10"]
[White "KacperKacprzak"]
[Black "Kirill_Klukin"]
[Result "0-1"]
[WhiteElo "2707"]
[BlackElo "2869"]
[TimeControl "180+1"]
[EndTime "9:58:01 PST"]
[Termination "Kirill_Klukin won by resignation"]

1. Nf3 {[%clk 0:03:00.9]} 1... d5 {[%clk 0:02:54]} 2. d4 {[%clk 0:02:59.2]} 2...
Nf6 {[%clk 0:02:52.9]} 3. c4 {[%clk 0:02:59.6]} 3... e6 {[%clk 0:02:52.8]} 4.
Nc3 {[%clk 0:03:00]} 4... a6 {[%clk 0:02:53.1]} 5. cxd5 {[%clk 0:02:58.1]} 5...
exd5 {[%clk 0:02:54]} 6. Bg5 {[%clk 0:02:54.4]} 6... Be6 {[%clk 0:02:53.8]} 7.
Bxf6 {[%clk 0:02:49.1]} 7... Qxf6 {[%clk 0:02:52.2]} 8. Qb3 {[%clk 0:02:50]}
8... b5 {[%clk 0:02:37.5]} 9. a4 {[%clk 0:02:45.9]} 9... b4 {[%clk 0:02:35.8]}
10. Nxd5 {[%clk 0:02:45.7]} 10... Qd8 {[%clk 0:02:32.9]} 11. e4 {[%clk
0:02:46.2]} 11... c6 {[%clk 0:02:30.8]} 12. Qe3 {[%clk 0:02:46.5]} 12... cxd5
{[%clk 0:02:21.8]} 13. exd5 {[%clk 0:02:47.4]} 13... Qxd5 {[%clk 0:02:22.3]} 14.
Rc1 {[%clk 0:02:48]} 14... Be7 {[%clk 0:02:03.3]} 15. Bc4 {[%clk 0:02:38.5]}
15... Qd6 {[%clk 0:01:50.1]} 16. Qe4 {[%clk 0:02:10.3]} 16... O-O {[%clk
0:01:01.5]} 17. Qxa8 {[%clk 0:02:01.9]} 17... Bxc4 {[%clk 0:01:01.5]} 18. Rxc4
{[%clk 0:01:54.7]} 18... Qe6+ {[%clk 0:00:59.7]} 19. Ne5 {[%clk 0:01:55.2]}
19... f6 {[%clk 0:00:41.8]} 20. O-O {[%clk 0:01:12]} 20... fxe5 {[%clk
0:00:41.8]} 21. Rfc1 {[%clk 0:01:07.5]} 21... Bg5 {[%clk 0:00:32.7]} 22. R1c2
{[%clk 0:00:48.7]} 22... exd4 {[%clk 0:00:32.6]} 23. g3 {[%clk 0:00:42.1]} 23...
d3 {[%clk 0:00:31.2]} 24. Kg2 {[%clk 0:00:36.3]} 24... dxc2 {[%clk 0:00:28.9]}
25. Rxc2 {[%clk 0:00:37.2]} 25... Qf5 {[%clk 0:00:28.3]} 26. Re2 {[%clk
0:00:33.3]} 26... Nd7 {[%clk 0:00:28.2]} 27. Qc6 {[%clk 0:00:33.3]} 27... Bf6
{[%clk 0:00:22.5]} 28. b3 {[%clk 0:00:25.9]} 28... h6 {[%clk 0:00:22.5]} 29. h4
{[%clk 0:00:25.7]} 29... a5 {[%clk 0:00:22.4]} 30. Rd2 {[%clk 0:00:24.1]} 30...
Ne5 {[%clk 0:00:21.3]} 31. Qd5+ {[%clk 0:00:24.3]} 31... Kh8 {[%clk 0:00:18.4]}
32. f4 {[%clk 0:00:24.9]} 32... Ng4 {[%clk 0:00:14.7]} 33. Qxf5 {[%clk
0:00:24.2]} 33... Ne3+ {[%clk 0:00:15.1]} 34. Kf3 {[%clk 0:00:25.1]} 34... Nxf5
{[%clk 0:00:16]} 35. Rd5 {[%clk 0:00:26]} 35... Nd4+ {[%clk 0:00:16.4]} 36. Ke4
{[%clk 0:00:26.2]} 36... Nxb3 {[%clk 0:00:17]} 37. Kd3 {[%clk 0:00:24.5]} 37...
Rc8 {[%clk 0:00:16.4]} 38. g4 {[%clk 0:00:23.4]} 38... Nc5+ {[%clk 0:00:16.3]}
39. Kc2 {[%clk 0:00:22.6]} 39... Nxa4+ {[%clk 0:00:16.6]} 40. Kb3 {[%clk
0:00:21.9]} 40... Nc5+ {[%clk 0:00:17.1]} 41. Kc4 {[%clk 0:00:22.5]} 41... b3
{[%clk 0:00:16.7]} 42. Rd1 {[%clk 0:00:22.1]} 42... b2 {[%clk 0:00:17.1]} 43. g5
{[%clk 0:00:21.8]} 43... Ne4+ {[%clk 0:00:17.5]} 44. Kb3 {[%clk 0:00:20.7]}
44... Rb8+ {[%clk 0:00:17.4]} 45. Kc2 {[%clk 0:00:20.2]} 45... b1=Q+ {[%clk
0:00:15.4]} 46. Rxb1 {[%clk 0:00:19.8]} 46... Rxb1 {[%clk 0:00:16.3]} 47. Kxb1
{[%clk 0:00:20.7]} 47... hxg5 {[%clk 0:00:17.1]} 48. hxg5 {[%clk 0:00:21.5]}
48... Nxg5 {[%clk 0:00:17.8]} 49. fxg5 {[%clk 0:00:22.4]} 49... Bxg5 {[%clk
0:00:18.7]} 50. Ka2 {[%clk 0:00:22.2]} 50... Bd8 {[%clk 0:00:19.6]} 51. Ka3
{[%clk 0:00:23.1]} 51... Kh7 {[%clk 0:00:20.1]} 52. Ka4 {[%clk 0:00:24]} 52...
Kh6 {[%clk 0:00:21]} 53. Kb5 {[%clk 0:00:23]} 53... Kh5 {[%clk 0:00:21.9]} 54.
Kc4 {[%clk 0:00:23.9]} 54... g5 {[%clk 0:00:22.5]} 55. Kc5 {[%clk 0:00:24.8]}
55... g4 {[%clk 0:00:22.7]} 56. Kc4 {[%clk 0:00:25.7]} 56... g3 {[%clk
0:00:23.4]} 57. Kd5 {[%clk 0:00:26.6]} 0-1

[Event "Early-Titled-Tuesday-Blitz-January-16-2024"]
[Site "Chess.com"]
[Date "2024.01.16"]
[Round "10"]
[White "Predator0608"]
[Black "lefonghua"]
[Result "1-0"]
[WhiteElo "2507"]
[BlackElo "2643"]
[TimeControl "180+1"]
[EndTime "9:58:02 PST"]
[Termination "Predator0608 won by checkmate"]

1. e4 {[%clk 0:03:00.9]} 1... c5 {[%clk 0:02:59.9]} 2. Nf3 {[%clk 0:03:00.7]}
2... g6 {[%clk 0:02:58.7]} 3. d4 {[%clk 0:03:00.8]} 3... cxd4 {[%clk 0:02:59.6]}
4. Nxd4 {[%clk 0:03:01.7]} 4... Bg7 {[%clk 0:03:00.3]} 5. Nc3 {[%clk 0:03:01.8]}
5... Nc6 {[%clk 0:03:00.8]} 6. Be3 {[%clk 0:03:02.4]} 6... Nf6 {[%clk
0:03:01.4]} 7. Bc4 {[%clk 0:03:03]} 7... Qa5 {[%clk 0:03:01.6]} 8. O-O {[%clk
0:02:54.3]} 8... O-O {[%clk 0:02:59.1]} 9. Bb3 {[%clk 0:02:50.9]} 9... d6 {[%clk
0:02:58.2]} 10. f3 {[%clk 0:02:44.8]} 10... Bd7 {[%clk 0:02:53.3]} 11. Qd2
{[%clk 0:02:43.4]} 11... Rfc8 {[%clk 0:02:47.6]} 12. Rad1 {[%clk 0:02:32.9]}
12... Nxd4 {[%clk 0:02:40.2]} 13. Bxd4 {[%clk 0:02:31.8]} 13... Bc6 {[%clk
0:02:39.1]} 14. Rfe1 {[%clk 0:01:29.2]} 14... Nd7 {[%clk 0:02:16.6]} 15. Bxg7
{[%clk 0:01:20.9]} 15... Kxg7 {[%clk 0:02:17.5]} 16. f4 {[%clk 0:01:15.4]} 16...
Qc5+ {[%clk 0:02:07.8]} 17. Kh1 {[%clk 0:01:06.6]} 17... Rf8 {[%clk 0:01:59.8]}
18. Re3 {[%clk 0:01:05.5]} 18... Rad8 {[%clk 0:01:58.5]} 19. Rh3 {[%clk
0:01:01.2]} 19... Nf6 {[%clk 0:01:56.1]} 20. Qe1 {[%clk 0:00:57.9]} 20... e6
{[%clk 0:01:49.6]} 21. Qh4 {[%clk 0:00:57]} 21... Qh5 {[%clk 0:01:47.5]} 22. Qg3
{[%clk 0:00:39.9]} 22... Nxe4 {[%clk 0:01:34]} 23. Qe3 {[%clk 0:00:32.7]} 23...
Qf5 {[%clk 0:01:31.1]} 24. Ne2 {[%clk 0:00:30.2]} 24... Nf2+ {[%clk 0:01:14.9]}
25. Qxf2 {[%clk 0:00:30.7]} 25... Qxh3 {[%clk 0:01:15]} 26. Nd4 {[%clk
0:00:23.8]} 26... Qh5 {[%clk 0:01:13.6]} 27. c3 {[%clk 0:00:12.6]} 27... Be4
{[%clk 0:01:08]} 28. Re1 {[%clk 0:00:11.8]} 28... d5 {[%clk 0:01:07.6]} 29. Bd1
{[%clk 0:00:11.9]} 29... Qh6 {[%clk 0:01:06.2]} 30. Kg1 {[%clk 0:00:11]} 30...
Rfe8 {[%clk 0:01:03.6]} 31. g4 {[%clk 0:00:11]} 31... e5 {[%clk 0:01:00.2]} 32.
fxe5 {[%clk 0:00:07.9]} 32... Rxe5 {[%clk 0:00:59.1]} 33. Rf1 {[%clk 0:00:08.4]}
33... Re7 {[%clk 0:00:54.5]} 34. Qf6+ {[%clk 0:00:08]} 34... Kg8 {[%clk
0:00:52.6]} 35. Qxe7 {[%clk 0:00:08.1]} 35... Rf8 {[%clk 0:00:52.3]} 36. Qf6
{[%clk 0:00:06.9]} 36... Qh3 {[%clk 0:00:40.2]} 37. Bf3 {[%clk 0:00:06.4]} 37...
Bxf3 {[%clk 0:00:37.5]} 38. Qxf3 {[%clk 0:00:05.7]} 38... Qh4 {[%clk 0:00:36.8]}
39. Qg3 {[%clk 0:00:06.3]} 39... Qg5 {[%clk 0:00:35.5]} 40. Qf4 {[%clk
0:00:06.8]} 40... Qe7 {[%clk 0:00:34.1]} 41. g5 {[%clk 0:00:05.7]} 41... Re8
{[%clk 0:00:33]} 42. h4 {[%clk 0:00:06.3]} 42... a6 {[%clk 0:00:32.4]} 43. h5
{[%clk 0:00:06]} 43... gxh5 {[%clk 0:00:32.4]} 44. Nf5 {[%clk 0:00:05.9]} 44...
Qe5 {[%clk 0:00:30.7]} 45. Nh6+ {[%clk 0:00:06.8]} 45... Kg7 {[%clk 0:00:28.9]}
46. Qxf7+ {[%clk 0:00:06.2]} 46... Kh8 {[%clk 0:00:29.6]} 47. Qf8+ {[%clk
0:00:04.8]} 47... Rxf8 {[%clk 0:00:28.1]} 48. Rxf8+ {[%clk 0:00:05.7]} 48... Kg7
{[%clk 0:00:28.6]} 49. Rg8# {[%clk 0:00:06.6]} 1-0

[Event "Early-Titled-Tuesday-Blitz-January-16-2024"]
[Site "Chess.com"]
[Date "2024.01.16"]
[Round "10"]
[White "Louis-Paulsen-Fan"]
[Black "RCone"]
[Result "1-0"]
[WhiteElo "2332"]
[BlackElo "2424"]
[TimeControl "180+1"]
[EndTime "9:58:05 PST"]
[Termination "Louis-Paulsen-Fan won on time"]

1. d4 {[%clk 0:03:00.9]} 1... g6 {[%clk 0:02:59.2]} 2. Nf3 {[%clk 0:03:00.4]}
2... Nf6 {[%clk 0:02:56.6]} 3. c4 {[%clk 0:03:00.5]} 3... d6 {[%clk 0:02:56.6]}
4. Nc3 {[%clk 0:02:59.6]} 4... Bg7 {[%clk 0:02:57.1]} 5. e4 {[%clk 0:02:59.9]}
5... O-O {[%clk 0:02:57.2]} 6. Be2 {[%clk 0:03:00.3]} 6... Na6 {[%clk
0:02:57.4]} 7. O-O {[%clk 0:02:59.9]} 7... e5 {[%clk 0:02:58]} 8. Re1 {[%clk
0:02:59.3]} 8... Bg4 {[%clk 0:02:56.6]} 9. d5 {[%clk 0:02:50.9]} 9... Nc5 {[%clk
0:02:55.5]} 10. Nd2 {[%clk 0:02:49.1]} 10... Nd3 {[%clk 0:02:23.8]} 11. Rf1
{[%clk 0:02:21.9]} 11... Bxe2 {[%clk 0:02:21]} 12. Qxe2 {[%clk 0:02:22]} 12...
Nxc1 {[%clk 0:01:52.6]} 13. Raxc1 {[%clk 0:02:20.9]} 13... Bh6 {[%clk
0:01:53.2]} 14. Rc2 {[%clk 0:02:14.6]} 14... Nh5 {[%clk 0:01:52.2]} 15. g3
{[%clk 0:02:14]} 15... Qd7 {[%clk 0:01:46.6]} 16. Kg2 {[%clk 0:02:07.8]} 16...
a5 {[%clk 0:01:36.7]} 17. Nd1 {[%clk 0:02:00.6]} 17... b6 {[%clk 0:01:27.3]} 18.
Ne3 {[%clk 0:01:59.9]} 18... Qe8 {[%clk 0:01:03.8]} 19. Nf5 {[%clk 0:01:39.5]}
19... Bxd2 {[%clk 0:01:00.7]} 20. Rxd2 {[%clk 0:01:37.9]} 20... f6 {[%clk
0:00:51.2]} 21. Nh4 {[%clk 0:01:33.3]} 21... f5 {[%clk 0:00:49.2]} 22. exf5
{[%clk 0:01:00.9]} 22... gxf5 {[%clk 0:00:50.1]} 23. f4 {[%clk 0:00:53.8]} 23...
exf4 {[%clk 0:00:49.2]} 24. gxf4 {[%clk 0:00:49.4]} 24... Qf7 {[%clk 0:00:38.4]}
25. Kh1 {[%clk 0:00:49.4]} 25... Rae8 {[%clk 0:00:34.3]} 26. Qf3 {[%clk
0:00:46.7]} 26... Re4 {[%clk 0:00:26.8]} 27. Ng2 {[%clk 0:00:40.5]} 27... Rxc4
{[%clk 0:00:20.3]} 28. Rg1 {[%clk 0:00:39.2]} 28... Kh8 {[%clk 0:00:18.9]} 29.
b3 {[%clk 0:00:32.1]} 29... Re4 {[%clk 0:00:18.4]} 30. Qc3+ {[%clk 0:00:28.2]}
30... Qf6 {[%clk 0:00:17.2]} 31. Qxc7 {[%clk 0:00:28]} 31... Rg8 {[%clk
0:00:13.1]} 32. Qxb6 {[%clk 0:00:26.5]} 32... Nxf4 {[%clk 0:00:10.1]} 33. Qf2
{[%clk 0:00:19.2]} 33... Nh3 {[%clk 0:00:07.8]} 34. Qf3 {[%clk 0:00:12.7]} 34...
Nxg1 {[%clk 0:00:08]} 35. Kxg1 {[%clk 0:00:13.6]} 35... Re1+ {[%clk 0:00:06.7]}
36. Kf2 {[%clk 0:00:12.6]} 36... Ra1 {[%clk 0:00:05.6]} 37. Ne3 {[%clk 0:00:11]}
37... Rgg1 {[%clk 0:00:02.3]} 38. Qf4 {[%clk 0:00:06.8]} 38... Qg6 {[%clk
0:00:01]} 39. Ke2 {[%clk 0:00:05.8]} 1-0

[Event "Early-Titled-Tuesday-Blitz-January-16-2024"]
[Site "Chess.com"]
[Date "2024.01.16"]
[Round "10"]
[White "1mbl4"]
[Black "PavelChernomordik"]
[Result "0-1"]
[WhiteElo "2565"]
[BlackElo "2442"]
[TimeControl "180+1"]
[EndTime "9:58:09 PST"]
[Termination "PavelChernomordik won on time"]

1. e4 {[%clk 0:02:58.3]} 1... g6 {[%clk 0:02:59.4]} 2. d4 {[%clk 0:02:57.8]}
2... Bg7 {[%clk 0:02:59.2]} 3. Nf3 {[%clk 0:02:57.7]} 3... d6 {[%clk 0:02:59.3]}
4. c4 {[%clk 0:02:55]} 4... Bg4 {[%clk 0:02:57.7]} 5. Be2 {[%clk 0:02:26.4]}
5... Nc6 {[%clk 0:02:56.7]} 6. Be3 {[%clk 0:02:22.5]} 6... e5 {[%clk 0:02:56]}
7. d5 {[%clk 0:02:22.5]} 7... Bxf3 {[%clk 0:02:55.6]} 8. Bxf3 {[%clk 0:02:17]}
8... Nd4 {[%clk 0:02:55.3]} 9. Nc3 {[%clk 0:02:14.2]} 9... c5 {[%clk 0:02:51]}
10. O-O {[%clk 0:02:09.2]} 10... Ne7 {[%clk 0:02:49.8]} 11. g3 {[%clk 0:02:03]}
11... Nxf3+ {[%clk 0:02:44.8]} 12. Qxf3 {[%clk 0:02:03.9]} 12... f5 {[%clk
0:02:43.4]} 13. exf5 {[%clk 0:01:58.7]} 13... Nxf5 {[%clk 0:02:40.4]} 14. Ne4
{[%clk 0:01:53.9]} 14... O-O {[%clk 0:02:39.8]} 15. Qg4 {[%clk 0:01:52.1]} 15...
Bf6 {[%clk 0:02:26.2]} 16. h4 {[%clk 0:01:23.5]} 16... Be7 {[%clk 0:02:22.4]}
17. h5 {[%clk 0:01:20.4]} 17... Kg7 {[%clk 0:02:19.6]} 18. Kg2 {[%clk
0:01:15.8]} 18... Qd7 {[%clk 0:02:06.5]} 19. Qh3 {[%clk 0:00:58.8]} 19... Nxe3+
{[%clk 0:01:48.3]} 20. fxe3 {[%clk 0:00:59.1]} 20... Qxh3+ {[%clk 0:01:48.4]}
21. Kxh3 {[%clk 0:00:59.4]} 21... Rxf1 {[%clk 0:01:47.6]} 22. Rxf1 {[%clk
0:00:55.5]} 22... gxh5 {[%clk 0:01:43.8]} 23. Kg2 {[%clk 0:00:43]} 23... Rf8
{[%clk 0:01:35.9]} 24. Rb1 {[%clk 0:00:41.1]} 24... a5 {[%clk 0:01:24.9]} 25. a3
{[%clk 0:00:36.2]} 25... Ra8 {[%clk 0:01:17.2]} 26. b4 {[%clk 0:00:23.6]} 26...
axb4 {[%clk 0:01:15.9]} 27. axb4 {[%clk 0:00:24.5]} 27... b6 {[%clk 0:00:51.3]}
28. bxc5 {[%clk 0:00:23.3]} 28... bxc5 {[%clk 0:00:51.3]} 29. Rb7 {[%clk
0:00:21]} 29... Kf8 {[%clk 0:00:51.6]} 30. Rd7 {[%clk 0:00:16.3]} 30... Ra4
{[%clk 0:00:45.2]} 31. Nxd6 {[%clk 0:00:14.8]} 31... Bxd6 {[%clk 0:00:45.2]} 32.
Rxd6 {[%clk 0:00:15.7]} 32... Rxc4 {[%clk 0:00:45.5]} 33. Re6 {[%clk 0:00:15.9]}
33... e4 {[%clk 0:00:40.8]} 34. Re5 {[%clk 0:00:11.1]} 34... Kf7 {[%clk
0:00:36.6]} 35. Rxh5 {[%clk 0:00:09.5]} 35... Kg6 {[%clk 0:00:35.2]} 36. Re5
{[%clk 0:00:08.3]} 36... Kf6 {[%clk 0:00:35.2]} 37. Re6+ {[%clk 0:00:07.1]}
37... Kf7 {[%clk 0:00:33.9]} 38. Rc6 {[%clk 0:00:05.6]} 38... Ke7 {[%clk
0:00:28.5]} 39. Kf2 {[%clk 0:00:02.3]} 39... Rc2+ {[%clk 0:00:26.6]} 0-1

[Event "Early-Titled-Tuesday-Blitz-January-16-2024"]
[Site "Chess.com"]
[Date "2024.01.16"]
[Round "10"]
[White "Alenzer"]
[Black "Matols"]
[Result "0-1"]
[WhiteElo "2145"]
[BlackElo "2392"]
[TimeControl "180+1"]
[EndTime "9:58:10 PST"]
[Termination "Matols won by checkmate"]

1. e4 {[%clk 0:03:00.9]} 1... c6 {[%clk 0:02:59.4]} 2. Nc3 {[%clk 0:03:00.4]}
2... d5 {[%clk 0:02:59.4]} 3. Qe2 {[%clk 0:03:00.7]} 3... d4 {[%clk 0:02:49]} 4.
Nd1 {[%clk 0:02:59.3]} 4... c5 {[%clk 0:02:45.9]} 5. g3 {[%clk 0:02:59]} 5...
Nc6 {[%clk 0:02:45.2]} 6. d3 {[%clk 0:02:57.4]} 6... e5 {[%clk 0:02:44.4]} 7. f4
{[%clk 0:02:57.1]} 7... Bd6 {[%clk 0:02:43]} 8. Nf3 {[%clk 0:02:56.4]} 8... Nge7
{[%clk 0:02:36.6]} 9. Nf2 {[%clk 0:02:51.5]} 9... h5 {[%clk 0:02:33.4]} 10. Bg2
{[%clk 0:02:50.6]} 10... Bg4 {[%clk 0:02:29.5]} 11. h3 {[%clk 0:02:48.3]} 11...
Bd7 {[%clk 0:02:22.2]} 12. Bd2 {[%clk 0:02:47.2]} 12... Qc7 {[%clk 0:02:21.1]}
13. f5 {[%clk 0:02:44.5]} 13... b5 {[%clk 0:02:14.5]} 14. g4 {[%clk 0:02:43.9]}
14... hxg4 {[%clk 0:02:13.5]} 15. hxg4 {[%clk 0:02:44.8]} 15... Rxh1+ {[%clk
0:02:13.2]} 16. Nxh1 {[%clk 0:02:42]} 16... Nb4 {[%clk 0:02:09.2]} 17. Bxb4
{[%clk 0:02:33.1]} 17... cxb4 {[%clk 0:02:10.1]} 18. g5 {[%clk 0:02:27.8]} 18...
Rc8 {[%clk 0:02:06.4]} 19. O-O-O {[%clk 0:02:27.6]} 19... b3 {[%clk 0:01:41.6]}
20. axb3 {[%clk 0:02:26.3]} 20... a5 {[%clk 0:01:41.4]} 21. Ng3 {[%clk
0:02:14.2]} 21... a4 {[%clk 0:01:40.7]} 22. Rh1 {[%clk 0:02:03.2]} 22... Nc6
{[%clk 0:01:36.4]} 23. bxa4 {[%clk 0:01:52.4]} 23... bxa4 {[%clk 0:01:34.9]} 24.
Rh8+ {[%clk 0:01:44.2]} 24... Bf8 {[%clk 0:01:34.1]} 25. Nh5 {[%clk 0:01:43.6]}
25... Ke7 {[%clk 0:01:23.9]} 26. f6+ {[%clk 0:01:41.4]} 26... gxf6 {[%clk
0:01:22.1]} 27. gxf6+ {[%clk 0:01:36.1]} 27... Kd6 {[%clk 0:01:21.5]} 28. Qd2
{[%clk 0:01:00.3]} 28... Be6 {[%clk 0:00:53.8]} 29. Ng7 {[%clk 0:00:57.6]} 29...
Bg4 {[%clk 0:00:32.3]} 30. Nh4 {[%clk 0:00:53.4]} 30... Kc5 {[%clk 0:00:29.8]}
31. Nhf5 {[%clk 0:00:46.5]} 31... Nb4 {[%clk 0:00:27.4]} 32. Rh7 {[%clk
0:00:35.8]} 32... Kb5 {[%clk 0:00:26.8]} 33. Kb1 {[%clk 0:00:26]} 33... Qxc2+
{[%clk 0:00:20.7]} 34. Qxc2 {[%clk 0:00:18]} 34... Rxc2 {[%clk 0:00:21.6]} 35.
Bh3 {[%clk 0:00:13]} 35... Rh2 {[%clk 0:00:20.8]} 36. Bxg4 {[%clk 0:00:08.1]}
36... Rxh7 {[%clk 0:00:21.4]} 37. Bd1 {[%clk 0:00:06.7]} 37... Rh1 {[%clk
0:00:21.1]} 38. Kc1 {[%clk 0:00:07.1]} 38... Nxd3+ {[%clk 0:00:21.1]} 39. Kc2
{[%clk 0:00:06.3]} 39... Nb4+ {[%clk 0:00:20]} 40. Kc1 {[%clk 0:00:05.8]} 40...
d3 {[%clk 0:00:20.3]} 41. Ne8 {[%clk 0:00:04.8]} 41... Kc4 {[%clk 0:00:18.1]}
42. Ned6+ {[%clk 0:00:05.1]} 42... Bxd6 {[%clk 0:00:17.7]} 43. Nxd6+ {[%clk
0:00:05.1]} 43... Kd4 {[%clk 0:00:17.2]} 44. Nxf7 {[%clk 0:00:06]} 44... Kxe4
{[%clk 0:00:16.9]} 45. Nd6+ {[%clk 0:00:06]} 45... Ke3 {[%clk 0:00:17]} 46. f7
{[%clk 0:00:06.9]} 46... d2+ {[%clk 0:00:17]} 47. Kb1 {[%clk 0:00:05.2]} 47...
Rxd1# {[%clk 0:00:17.3]} 0-1

[Event "Early-Titled-Tuesday-Blitz-January-16-2024"]
[Site "Chess.com"]
[Date "2024.01.16"]
[Round "10"]
[White "ChainedDowntohell"]
[Black "stepanosinovsky"]
[Result "1-0"]
[WhiteElo "2544"]
[BlackElo "2381"]
[TimeControl "180+1"]
[EndTime "9:58:13 PST"]
[Termination "ChainedDowntohell won on time"]

1. d4 {[%clk 0:03:00.9]} 1... Nf6 {[%clk 0:02:59.7]} 2. c4 {[%clk 0:03:00.4]}
2... g6 {[%clk 0:03:00.3]} 3. Nc3 {[%clk 0:03:00]} 3... Bg7 {[%clk 0:03:00.2]}
4. e4 {[%clk 0:03:00.1]} 4... O-O {[%clk 0:03:01.1]} 5. Be2 {[%clk 0:03:00]}
5... d6 {[%clk 0:03:01]} 6. h4 {[%clk 0:02:59.2]} 6... e5 {[%clk 0:02:57]} 7. d5
{[%clk 0:02:58.9]} 7... Na6 {[%clk 0:02:42.7]} 8. h5 {[%clk 0:02:57.2]} 8... Nc5
{[%clk 0:02:43.3]} 9. h6 {[%clk 0:02:56.9]} 9... Bh8 {[%clk 0:02:42.9]} 10. Bg5
{[%clk 0:02:56.2]} 10... a5 {[%clk 0:02:35.6]} 11. Qc2 {[%clk 0:02:49.5]} 11...
Bd7 {[%clk 0:02:18.9]} 12. f3 {[%clk 0:02:48.3]} 12... c6 {[%clk 0:02:07]} 13.
Nh3 {[%clk 0:02:43.2]} 13... cxd5 {[%clk 0:02:06.6]} 14. cxd5 {[%clk 0:02:40]}
14... a4 {[%clk 0:01:56.9]} 15. Be3 {[%clk 0:02:28.7]} 15... Nh5 {[%clk
0:01:26.8]} 16. g4 {[%clk 0:02:05.3]} 16... Ng3 {[%clk 0:01:14]} 17. Rg1 {[%clk
0:02:02.6]} 17... Nxe2 {[%clk 0:01:14.9]} 18. Qxe2 {[%clk 0:01:59.9]} 18... b5
{[%clk 0:01:08.9]} 19. Nf2 {[%clk 0:01:46.4]} 19... b4 {[%clk 0:01:01.2]} 20.
Ncd1 {[%clk 0:01:43.7]} 20... Qa5 {[%clk 0:00:37.6]} 21. Nd3 {[%clk 0:01:28.9]}
21... Bb5 {[%clk 0:00:35.4]} 22. Bxc5 {[%clk 0:01:23.6]} 22... dxc5 {[%clk
0:00:34.4]} 23. Qd2 {[%clk 0:01:23.6]} 23... Rfc8 {[%clk 0:00:27.4]} 24. Ne3
{[%clk 0:01:20]} 24... Qa6 {[%clk 0:00:25.6]} 25. Rd1 {[%clk 0:01:16.8]} 25...
Bxd3 {[%clk 0:00:20.8]} 26. Qxd3 {[%clk 0:01:17.7]} 26... c4 {[%clk 0:00:20.1]}
27. Qe2 {[%clk 0:01:14.4]} 27... Bf6 {[%clk 0:00:19.3]} 28. d6 {[%clk 0:01:10]}
28... Bg5 {[%clk 0:00:17.5]} 29. Nf5 {[%clk 0:00:57.7]} 29... Rd8 {[%clk
0:00:14.4]} 30. Ne7+ {[%clk 0:00:50.8]} 30... Kf8 {[%clk 0:00:13.8]} 31. Nd5
{[%clk 0:00:45.1]} 31... Rxd6 {[%clk 0:00:11.9]} 32. Kf2 {[%clk 0:00:36.4]}
32... Qa7+ {[%clk 0:00:10.9]} 33. Kg2 {[%clk 0:00:36.4]} 33... Qc5 {[%clk
0:00:09.8]} 34. Qe1 {[%clk 0:00:28.1]} 34... b3 {[%clk 0:00:07.4]} 35. a3 {[%clk
0:00:25.3]} 35... Rad8 {[%clk 0:00:06.7]} 36. Qc3 {[%clk 0:00:24.1]} 36... Bxh6
{[%clk 0:00:05.8]} 37. Qxe5 {[%clk 0:00:20.3]} 37... Bg7 {[%clk 0:00:04.9]} 38.
Qe7+ {[%clk 0:00:19.3]} 38... Kg8 {[%clk 0:00:04.6]} 39. Rh1 {[%clk 0:00:16.2]}
39... Rxd5 {[%clk 0:00:04.3]} 40. Qxc5 {[%clk 0:00:15]} 40... Rxc5 {[%clk
0:00:03.4]} 41. Rxd8+ {[%clk 0:00:15]} 41... Bf8 {[%clk 0:00:03.8]} 42. Rc1
{[%clk 0:00:13.7]} 42... Kg7 {[%clk 0:00:03.1]} 43. Rd4 {[%clk 0:00:11.8]} 43...
c3 {[%clk 0:00:02.5]} 44. bxc3 {[%clk 0:00:08.7]} 1-0

[Event "Early-Titled-Tuesday-Blitz-January-16-2024"]
[Site "Chess.com"]
[Date "2024.01.16"]
[Round "10"]
[White "Lady_Nika"]
[Black "EvgenyBurmakin"]
[Result "0-1"]
[WhiteElo "2562"]
[BlackElo "2412"]
[TimeControl "180+1"]
[EndTime "9:58:14 PST"]
[Termination "EvgenyBurmakin won by resignation"]

1. e4 {[%clk 0:03:00.9]} 1... c5 {[%clk 0:02:59.1]} 2. Nc3 {[%clk 0:03:00.8]}
2... Nc6 {[%clk 0:02:57.3]} 3. g3 {[%clk 0:03:01.7]} 3... g6 {[%clk 0:02:55.6]}
4. Bg2 {[%clk 0:03:02.6]} 4... Bg7 {[%clk 0:02:56]} 5. d3 {[%clk 0:03:00.8]}
5... d6 {[%clk 0:02:55.9]} 6. f4 {[%clk 0:03:00.9]} 6... e6 {[%clk 0:02:55.6]}
7. Nf3 {[%clk 0:03:00.9]} 7... Nge7 {[%clk 0:02:55.6]} 8. O-O {[%clk 0:03:01.1]}
8... O-O {[%clk 0:02:55.4]} 9. Rb1 {[%clk 0:03:01.2]} 9... d5 {[%clk 0:02:46.7]}
10. Ne2 {[%clk 0:02:52]} 10... dxe4 {[%clk 0:02:37.9]} 11. dxe4 {[%clk
0:02:50.6]} 11... Qxd1 {[%clk 0:02:38.8]} 12. Rxd1 {[%clk 0:02:50.1]} 12... b6
{[%clk 0:02:34.7]} 13. Be3 {[%clk 0:02:47.4]} 13... Ba6 {[%clk 0:02:30.1]} 14.
Kf2 {[%clk 0:02:43.8]} 14... Rfd8 {[%clk 0:02:26.7]} 15. a3 {[%clk 0:02:41.2]}
15... Rxd1 {[%clk 0:02:18.6]} 16. Rxd1 {[%clk 0:02:42.1]} 16... Bxb2 {[%clk
0:02:17.4]} 17. Rb1 {[%clk 0:02:23.2]} 17... Bg7 {[%clk 0:02:12.9]} 18. e5
{[%clk 0:02:15.7]} 18... Rd8 {[%clk 0:02:09.7]} 19. Ng5 {[%clk 0:02:12]} 19...
Bxe2 {[%clk 0:01:50.8]} 20. Kxe2 {[%clk 0:02:11.5]} 20... Nd4+ {[%clk 0:01:51]}
21. Bxd4 {[%clk 0:02:10.9]} 21... Rxd4 {[%clk 0:01:50.8]} 22. c3 {[%clk
0:02:00.9]} 22... Rd8 {[%clk 0:01:39.6]} 23. Ne4 {[%clk 0:01:57.2]} 23... Nd5
{[%clk 0:01:32.4]} 24. Rd1 {[%clk 0:01:55.8]} 24... c4 {[%clk 0:01:19.7]} 25.
Kf2 {[%clk 0:01:00.4]} 25... Rc8 {[%clk 0:00:54.2]} 26. Nd6 {[%clk 0:00:55.4]}
26... Rc5 {[%clk 0:00:52.8]} 27. Ne4 {[%clk 0:00:36.3]} 27... Ra5 {[%clk
0:00:49.6]} 28. Rd4 {[%clk 0:00:35.5]} 28... b5 {[%clk 0:00:46.2]} 29. Nd6
{[%clk 0:00:35.4]} 29... Nxc3 {[%clk 0:00:25.7]} 30. Nb7 {[%clk 0:00:24.9]}
30... Rxa3 {[%clk 0:00:25.4]} 31. Rd8+ {[%clk 0:00:24.8]} 31... Bf8 {[%clk
0:00:25.6]} 32. Nc5 {[%clk 0:00:19.3]} 32... Kg7 {[%clk 0:00:22.7]} 33. Nd7
{[%clk 0:00:18]} 33... Be7 {[%clk 0:00:20.9]} 34. Re8 {[%clk 0:00:17.6]} 34...
Ra2+ {[%clk 0:00:18.4]} 35. Kf1 {[%clk 0:00:13.9]} 35... Nd1 {[%clk 0:00:15.9]}
36. Bc6 {[%clk 0:00:05.9]} 36... Ne3+ {[%clk 0:00:15.2]} 37. Kg1 {[%clk
0:00:05.3]} 37... c3 {[%clk 0:00:15.1]} 38. Nf6 {[%clk 0:00:03.3]} 38... Bxf6
{[%clk 0:00:14.6]} 39. exf6+ {[%clk 0:00:04.2]} 39... Kxf6 {[%clk 0:00:15.2]}
40. Bxb5 {[%clk 0:00:04.6]} 40... c2 {[%clk 0:00:14.4]} 41. Rc8 {[%clk 0:00:05]}
41... Ra1+ {[%clk 0:00:14.3]} 42. Kf2 {[%clk 0:00:05.4]} 42... c1=Q {[%clk
0:00:14.5]} 43. Rxc1 {[%clk 0:00:05.1]} 43... Rxc1 {[%clk 0:00:14.9]} 44. Kxe3
{[%clk 0:00:06]} 44... a5 {[%clk 0:00:13.1]} 0-1